Workbook

Sheet configuration
A2: DDT4all RS slots configurator
A4: Set basic parameters | D4: Only edit fields with these colors:
A5: Max power | B5: 325 | C5: hp
A6: Max torque | B6: 420 | C6: Nm
A7: Max turbo pressure | B7: 1600 | C7: mbar
A8: Max rpm | B8: 6800
A11: Enable / Disable individual RS monitor screens
A12: Wheelspin | B12: ON
A13: EDC present | B13: ON
A14: Oscilloscope | B14: ON
A15: GPS Stopwatch | B15: OFF
A16: R.S. Maintenance | B16: OFF | G16: Triggerhappy @ ClioClub.info 2020
A17: Advice | B17: OFF
A18: Throttle mapping | B18: ON
A19: Power steering | B19: ON
A20: Shift beep threshold | B20: ON
A23: Torque and power tables
A25: rev/min | B25: torque normal mode (input) | C25: torque sport mode (input) | D25: power normal mode (calculated) | E25: power sport mode (calculated)
A26: 0 | B26: 0 | C26: 0 | D26: =B26*A26*0.0014 -> 0 | E26: =C26*A26*0.0014 -> 0
A27: 900 | B27: 50 | C27: 60 | D27: =(B27*A27*0.0014)/10 -> 6.3 | E27: =(C27*A27*0.0014)/10 -> 7.56
A28: =A27+218.52 -> 1118.52 | B28: 70 | C28: 84 | D28: =(B28*A28*0.0014)/10 -> 10.961496 | E28: =(C28*A28*0.0014)/10 -> 13.1537952
A29: =A28+218.52 -> 1337.04 | B29: 80 | C29: 96 | D29: 14.974848 | E29: 17.9698176
A30: 1555.56 | B30: 100 | C30: 115 | D30: 21.77784 | E30: 25.044516
A31: 1774.08 | B31: 120 | C31: 138 | D31: 29.804544 | E31: 34.2752256
A32: 1992.6 | B32: 150 | C32: 173 | D32: 41.8446 | E32: 48.260772
A33: 2211.12 | B33: 200 | C33: 230 | D33: 61.91136 | E33: 71.198064
A34: 2429.64 | B34: 240 | C34: 285 | D34: 81.635904 | E34: 96.942636
A35: 2648.16 | B35: 280 | C35: 350 | D35: 103.807872 | E35: 129.75984
A36: 2866.68 | B36: 320 | C36: 400 | D36: 128.427264 | E36: 160.53408
A37: 3085.2 | B37: 345 | C37: 420 | D37: 149.01516 | E37: 181.40976
A38: 3303.72 | B38: 350 | C38: 420 | D38: 161.88228 | E38: 194.258736
A39: 3522.24 | B39: 345 | C39: 420 | D39: 170.124192 | E39: 207.107712
A40: 3740.76 | B40: 340 | C40: 420 | D40: 178.060176 | E40: 219.956688
A41: 3959.28 | B41: 335 | C41: 420 | D41: 185.690232 | E41: 232.805664
A42: 4177.8 | B42: 333 | C42: 415 | D42: 194.769036 | E42: 242.73018
A43: 4396.32 | B43: 325 | C43: 410 | D43: 200.03256 | E43: 252.348768
A44: 4614.84 | B44: 318 | C44: 400 | D44: 205.4526768 | E44: 258.43104
A45: 4833.36 | B45: 315 | C45: 390 | D45: 213.151176 | E45: 263.901456
A46: 5051.88 | B46: 313 | C46: 380 | D46: 221.3733816 | E46: 268.760016
A47: 5270.4 | B47: 310 | C47: 370 | D47: 228.73536 | E47: 273.00672
A48: 5488.92 | B48: 310 | C48: 365 | D48: 238.219128 | E48: 280.483812
A49: 5707.44 | B49: 305 | C49: 350 | D49: 243.707688 | E49: 279.66456
A50: 5925.96 | B50: 300 | C50: 335 | D50: 248.89032 | E50: 277.927524
A51: 6144.48 | B51: 295 | C51: 325 | D51: 253.767024 | E51: 279.57384
A52: 6363 | B52: 285 | C52: 314 | D52: 253.8837 | E52: 279.71748
A53: 6581.52 | B53: 270 | C53: 297 | D53: 248.781456 | E53: 273.6596016
A54: 6800.04 | B54: 260 | C54: 286 | D54: 247.521456 | E54: 272.2736016
A56: Merged modified table data Slot 1 to be copied into DDT4all
A57: ON
A58: OFF
A59: ='modified hex slots (V2)'!A42 -> 00020001000A1068010800050CB2010B2EE02EE06D9001075A5ABE010A3C3C7801042EE02EE032C801042EE02EE0345801076E6EA001050000190A0A2710271036B0010A5F5F91010A64646E010000000A010000008C01072EE032C884D0010B00010203040506070204000901010100000001010180808080757575726B6A686561605E615A58546154514B614F4B44614B463E614A443E614B443E614D443E614D443E618080808083838383858584818887877F8C8B897F908F8C7F97958F7F9E9B8F7FA8A28F7FB3A28F7FBAA28F7FBAA28F7F14506E01320128059623000000000000000000000000000000
A61: Merged modified table data Slot 2 to be copied into DDT4all
A62: ='modified hex slots (V2)'!A45 -> 0001000200192328323C4B64788CA0ACAFACAAA7A6A29F9D9C9B9B9896938E87821E2A30394556738EAFC8D2D2D2D2D2CFCDC8C3BEB9B6AFA7A29D948F6A019064057864004E2064635F6401903C03E864646464646464004B007700A800E6012201606464325A6E010696965A829600014502640FDC1C8AB404000000000100015F880F010200030414100A0300284B6E96BE000000000000000000000000000000000000000000000000000000000000000000000000000000000000000000000000000000000000000000000000000000000000000000000000000000000000000000000000000000000000000000

Sheet modified hex slots (V2) (hidden)
H2: MODIFIED HEX SLOTS MEGANE RS TROPHY STAGE 1
I4: Slot 1
B5: 00 | C5: 01 | D5: 02 | E5: 03 | F5: 04 | G5: 05 | H5: 06 | I5: 07 | J5: 08 | K5: 09 | L5: 0A | M5: 0B | N5: 0C | O5: 0D | P5: 0E | Q5: 0F | U5: Non RS models monitor activation (only by EEPROM reprogram)
A6: 00000B10 | B6: 0B | C6: 02 | D6: 00 | E6: 02 | F6: 00 | G6: 01 | H6: 00 | I6: 0A | J6: =LEFT(RIGHT("0"&DEC2HEX(configuration!B6*10),4),2) -> 10 | K6: =RIGHT(RIGHT("0"&DEC2HEX(configuration!B6*10),4),2) -> 68 | L6: 01 | M6: 08 | N6: 00 | O6: 05 | P6: =LEFT(RIGHT("0"&DEC2HEX(configuration!B5*10),4),2) -> 0C | Q6: =RIGHT(RIGHT("0"&DEC2HEX(configuration!B5*10),4),2) -> B2 | U6: new engine max power
A7: 00000B20 | B7: 01 | C7: 0B | D7: 2E | E7: E0 | F7: 2E | G7: E0 | H7: =DEC2HEX(CEILING((configuration!B7+1185)/25.6,1)) -> 6D | I7: 90 | J7: 01 | K7: 07 | L7: 5A | M7: 5A | N7: BE | O7: 01 | P7: 0A | Q7: 3C | U7: new engine max torque
A8: 00000B30 | B8: 3C | C8: 78 | D8: 01 | E8: 04 | F8: 2E | G8: E0 | H8: 2E | I8: E0 | J8: 32 | K8: C8 | L8: 01 | M8: 04 | N8: 2E | O8: E0 | P8: 2E | Q8: E0 | U8: new max turbo pressure
A9: 00000B40 | B9: 34 | C9: 58 | D9: 01 | E9: 07 | F9: 6E | G9: 6E | H9: A0 | I9: 01 | J9: 05 | K9: 00 | L9: 00 | M9: 19 | N9: 0A | O9: 0A | P9: 27 | Q9: 10
A10: 00000B50 | B10: 27 | C10: 10 | D10: 36 | E10: B0 | F10: 01 | G10: 0A | H10: 5F | I10: 5F | J10: 91 | K10: 01 | L10: 0A | M10: 64 | N10: 64 | O10: 6E | P10: 01 | Q10: 00
A11: 00000B60 | B11: 00 | C11: 00 | D11: 0A | E11: 01 | F11: 00 | G11: 00 | H11: 00 | I11: 8C | J11: 01 | K11: 07 | L11: 2E | M11: E0 | N11: 32 | O11: C8 | P11: 84 | Q11: D0
A12: 00000B70 | B12: 01 | C12: 0B | D12: 00 | E12: 01 | F12: 02 | G12: 03 | H12: 04 | I12: 05 | J12: 06 | K12: 07 | L12: 02 | M12: 04 | N12: 00 | O12: 09 | P12: =IF(configuration!B12="ON","01","00") -> 01 | Q12: =IF(configuration!B13="ON","01","00") -> 01 | U12: new monitor screen configuration
A13: 00000B80 | B13: =IF(configuration!B14="ON","01","00") -> 01 | C13: =IF(configuration!B15="ON","01","00") -> 00 | D13: =IF(configuration!B16="ON","01","00") -> 00 | E13: =IF(configuration!B17="ON","01","00") -> 00 | F13: =IF(configuration!B18="ON","01","00") -> 01 | G13: =IF(configuration!B19="ON","01","00") -> 01 | H13: =IF(configuration!B20="ON","01","00") -> 01 | I13: 80 | J13: 80 | K13: 80 | L13: 80 | M13: 75 | N13: 75 | O13: 75 | P13: 72 | Q13: 6B | U13: Unknown graphs
A14: 00000B90 | B14: 6A | C14: 68 | D14: 65 | E14: 61 | F14: 60 | G14: 5E | H14: 61 | I14: 5A | J14: 58 | K14: 54 | L14: 61 | M14: 54 | N14: 51 | O14: 4B | P14: 61 | Q14: 4F
A15: 00000BA0 | B15: 4B | C15: 44 | D15: 61 | E15: 4B | F15: 46 | G15: 3E | H15: 61 | I15: 4A | J15: 44 | K15: 3E | L15: 61 | M15: 4B | N15: 44 | O15: 3E | P15: 61 | Q15: 4D
A16: 00000BB0 | B16: 44 | C16: 3E | D16: 61 | E16: 4D | F16: 44 | G16: 3E | H16: 61 | I16: 80 | J16: 80 | K16: 80 | L16: 80 | M16: 83 | N16: 83 | O16: 83 | P16: 83 | Q16: 85
A17: 00000BC0 | B17: 85 | C17: 84 | D17: 81 | E17: 88 | F17: 87 | G17: 87 | H17: 7F | I17: 8C | J17: 8B | K17: 89 | L17: 7F | M17: 90 | N17: 8F | O17: 8C | P17: 7F | Q17: 97
A18: 00000BD0 | B18: 95 | C18: 8F | D18: 7F | E18: 9E | F18: 9B | G18: 8F | H18: 7F | I18: A8 | J18: A2 | K18: 8F | L18: 7F | M18: B3 | N18: A2 | O18: 8F | P18: 7F | Q18: BA
A19: 00000BE0 | B19: A2 | C19: 8F | D19: 7F | E19: BA | F19: A2 | G19: 8F | H19: 7F | I19: 14 | J19: 50 | K19: 6E | L19: 01 | M19: 32 | N19: 01 | O19: 28 | P19: 05 | Q19: 96
A20: 00000BF0 | B20: 23 | C20: 00 | D20: 00 | E20: 00 | F20: 00 | G20: 00 | H20: 00 | I20: 00 | J20: 00 | K20: 00 | L20: 00 | M20: 00 | N20: 00 | O20: 00 | P20: 00 | Q20: 00
I22: Slot 2
B23: 00 | C23: 01 | D23: 02 | E23: 03 | F23: 04 | G23: 05 | H23: 06 | I23: 07 | J23: 08 | K23: 09 | L23: 0A | M23: 0B | N23: 0C | O23: 0D | P23: 0E | Q23: 0F
A24: 00000C00 | B24: 00 | C24: 01 | D24: 00 | E24: 02 | F24: 00 | G24: =DEC2HEX(configuration!B27/2) -> 19 | H24: =DEC2HEX(configuration!B28/2) -> 23 | I24: =DEC2HEX(configuration!B29/2) -> 28 | J24: =DEC2HEX(configuration!B30/2) -> 32 | K24: =DEC2HEX(configuration!B31/2) -> 3C | L24: =DEC2HEX(configuration!B32/2) -> 4B | M24: =DEC2HEX(configuration!B33/2) -> 64 | N24: =DEC2HEX(configuration!B34/2) -> 78 | O24: =DEC2HEX(configuration!B35/2) -> 8C | P24: =DEC2HEX(configuration!B36/2) -> A0 | Q24: =DEC2HEX(configuration!B37/2) -> AC | U24: new torque values normal mode
A25: 00000C10 | B25: =DEC2HEX(configuration!B38/2) -> AF | C25: =DEC2HEX(configuration!B39/2) -> AC | D25: =DEC2HEX(configuration!B40/2) -> AA | E25: =DEC2HEX(configuration!B41/2) -> A7 | F25: =DEC2HEX(configuration!B42/2) -> A6 | G25: =DEC2HEX(configuration!B43/2) -> A2 | H25: =DEC2HEX(configuration!B44/2) -> 9F | I25: =DEC2HEX(configuration!B45/2) -> 9D | J25: =DEC2HEX(configuration!B46/2) -> 9C | K25: =DEC2HEX(configuration!B47/2) -> 9B | L25: =DEC2HEX(configuration!B48/2) -> 9B | M25: =DEC2HEX(configuration!B49/2) -> 98 | N25: =DEC2HEX(configuration!B50/2) -> 96 | O25: =DEC2HEX(configuration!B51/2) -> 93 | P25: =DEC2HEX(configuration!B52/2) -> 8E | Q25: =DEC2HEX(configuration!B53/2) -> 87 | U25: new torque values sport mode
A26: 00000C20 | B26: =DEC2HEX(configuration!B54/2) -> 82 | C26: =DEC2HEX(configuration!C27/2) -> 1E | D26: =DEC2HEX(configuration!C28/2) -> 2A | E26: =DEC2HEX(configuration!C29/2) -> 30 | F26: =DEC2HEX(configuration!C30/2) -> 39 | G26: =DEC2HEX(configuration!C31/2) -> 45 | H26: =DEC2HEX(configuration!C32/2) -> 56 | I26: =DEC2HEX(configuration!C33/2) -> 73 | J26: =DEC2HEX(configuration!C34/2) -> 8E | K26: =DEC2HEX(configuration!C35/2) -> AF | L26: =DEC2HEX(configuration!C36/2) -> C8 | M26: =DEC2HEX(configuration!C37/2) -> D2 | N26: =DEC2HEX(configuration!C38/2) -> D2 | O26: =DEC2HEX(configuration!C39/2) -> D2 | P26: =DEC2HEX(configuration!C40/2) -> D2 | Q26: =DEC2HEX(configuration!C41/2) -> D2
A27: 00000C30 | B27: =DEC2HEX(configuration!C42/2) -> CF | C27: =DEC2HEX(configuration!C43/2) -> CD | D27: =DEC2HEX(configuration!C44/2) -> C8 | E27: =DEC2HEX(configuration!C45/2) -> C3 | F27: =DEC2HEX(configuration!C46/2) -> BE | G27: =DEC2HEX(configuration!C47/2) -> B9 | H27: =DEC2HEX(configuration!C48/2) -> B6 | I27: =DEC2HEX(configuration!C49/2) -> AF | J27: =DEC2HEX(configuration!C50/2) -> A7 | K27: =DEC2HEX(configuration!C51/2) -> A2 | L27: =DEC2HEX(configuration!C52/2) -> 9D | M27: =DEC2HEX(configuration!C53/2) -> 94 | N27: =DEC2HEX(configuration!C54/2) -> 8F | O27: 6A | P27: 01 | Q27: 90
A28: 00000C40 | B28: 64 | C28: 05 | D28: 78 | E28: 64 | F28: 00 | G28: 4E | H28: 20 | I28: 64 | J28: 63 | K28: 5F | L28: 64 | M28: 01 | N28: 90 | O28: 3C | P28: 03 | Q28: E8
A29: 00000C50 | B29: 64 | C29: 64 | D29: 64 | E29: 64 | F29: 64 | G29: 64 | H29: 64 | I29: 00 | J29: 4B | K29: 00 | L29: 77 | M29: 00 | N29: A8 | O29: 00 | P29: E6 | Q29: 01
A30: 00000C60 | B30: 22 | C30: 01 | D30: 60 | E30: 64 | F30: 64 | G30: 32 | H30: 5A | I30: 6E | J30: 01 | K30: 06 | L30: 96 | M30: 96 | N30: 5A | O30: 82 | P30: 96 | Q30: 00
A31: 00000C70 | B31: 01 | C31: 45 | D31: 02 | E31: 64 | F31: 0F | G31: DC | H31: 1C | I31: 8A | J31: B4 | K31: 04 | L31: 00 | M31: 00 | N31: 00 | O31: 00 | P31: 01 | Q31: 00
A32: 00000C80 | B32: 01 | C32: 5F | D32: =DEC2HEX(configuration!B8/100*2) -> 88 | E32: 0F | F32: 01 | G32: 02 | H32: 00 | I32: 03 | J32: 04 | K32: 14 | L32: 10 | M32: 0A | N32: 03 | O32: 00 | P32: 28 | Q32: 4B | U32: new max RPM
A33: 00000C90 | B33: 6E | C33: 96 | D33: BE | E33: 00 | F33: 00 | G33: 00 | H33: 00 | I33: 00 | J33: 00 | K33: 00 | L33: 00 | M33: 00 | N33: 00 | O33: 00 | P33: 00 | Q33: 00 | U33: model (Clio GT RS200 RS220 Meg3 RS trophy)
B34: 00 | C34: 00 | D34: 00 | E34: 00 | F34: 00 | G34: 00 | H34: 00 | I34: 00 | J34: 00 | K34: 00 | L34: 00 | M34: 00 | N34: 00 | O34: 00 | P34: 00 | Q34: 00
B35: 00 | C35: 00 | D35: 00 | E35: 00 | F35: 00 | G35: 00 | H35: 00 | I35: 00 | J35: 00 | K35: 00 | L35: 00 | M35: 00 | N35: 00 | O35: 00 | P35: 00 | Q35: 00
B36: 00 | C36: 00 | D36: 00 | E36: 00 | F36: 00 | G36: 00 | H36: 00 | I36: 00 | J36: 00 | K36: 00 | L36: 00 | M36: 00 | N36: 00 | O36: 00 | P36: 00 | Q36: 00
B37: 00 | C37: 00 | D37: 00 | E37: 00 | F37: 00 | G37: 00 | H37: 00 | I37: 00 | J37: 00 | K37: 00 | L37: 00 | M37: 00 | N37: 00 | O37: 00 | P37: 00 | Q37: 00
B38: 00 | C38: 00 | D38: 00 | E38: 00 | F38: 00 | G38: 00 | H38: 00 | I38: 00 | J38: 00 | K38: 00 | L38: 00 | M38: 00 | N38: 00 | O38: 00 | P38: 00 | Q38: 00
A41: Merged modified table data Slot 1 to be copied into DDT4all
A42: =D6&E6&F6&G6&H6&I6&J6&K6&L6&M6&N6&O6&P6&Q6&B7&C7&D7&E7&F7&G7&H7&I7&J7&K7&L7&M7&N7&O7&P7&Q7&B8&C8&D8&E8&F8&G8&H8&I8&J8&K8&L8&M8&N8&O8&P8&Q8&B9&C9&D9&E9&F9&G9&H9&I9&J9&K9&L9&M9&N9&O9&P9&Q9&B10&C10&D10&E10&F10&G10&H10&I10&J10&K10&L10&M10&N10&O10&P10&Q10&B11&C11&D11&E11&F11&G11&H11&I11&J11&K11&L11&M11&N11&O11&P11&Q11&B12&C12&D12&E12&F12&G12&H12&I12&J12&K12&L12&M12&N12&O12&P12&Q12&B13&C13&D13&E13&F13&G13&H13&I13&J13&K13&L13&M13&N13&O13&P13&Q13&B14&C14&D14&E14&F14&G14&H14&I14&J14&K14&L14&M14&N14&O14&P14&Q14&B15&C15&D15&E15&F15&G15&H15&I15&J15&K15&L15&M15&N15&O15&P15&Q15&B16&C16&D16&E16&F16&G16&H16&I16&J16&K16&L16&M16&N16&O16&P16&Q16&B17&C17&D17&E17&F17&G17&H17&I17&J17&K17&L17&M17&N17&O17&P17&Q17&B18&C18&D18&E18&F18&G18&H18&I18&J18&K18&L18&M18&N18&O18&P18&Q18&B19&C19&D19&E19&F19&G19&H19&I19&J19&K19&L19&M19&N19&O19&P19&Q19&B20&C20&D20&E20&F20&G20&H20&I20&J20&K20&L20&M20&N20&O20&P20&Q20 -> 00020001000A1068010800050CB2010B2EE02EE06D9001075A5ABE010A3C3C7801042EE02EE032C801042EE02EE0345801076E6EA001050000190A0A2710271036B0010A5F5F91010A64646E010000000A010000008C01072EE032C884D0010B00010203040506070204000901010100000001010180808080757575726B6A686561605E615A58546154514B614F4B44614B463E614A443E614B443E614D443E614D443E618080808083838383858584818887877F8C8B897F908F8C7F97958F7F9E9B8F7FA8A28F7FB3A28F7FBAA28F7FBAA28F7F14506E01320128059623000000000000000000000000000000
A44: Merged modified table data Slot 2 to be copied into DDT4all
A45: =B24&C24&D24&E24&F24&G24&H24&I24&J24&K24&L24&M24&N24&O24&P24&Q24&B25&C25&D25&E25&F25&G25&H25&I25&J25&K25&L25&M25&N25&O25&P25&Q25&B26&C26&D26&E26&F26&G26&H26&I26&J26&K26&L26&M26&N26&O26&P26&Q26&B27&C27&D27&E27&F27&G27&H27&I27&J27&K27&L27&M27&N27&O27&P27&Q27&B28&C28&D28&E28&F28&G28&H28&I28&J28&K28&L28&M28&N28&O28&P28&Q28&B29&C29&D29&E29&F29&G29&H29&I29&J29&K29&L29&M29&N29&O29&P29&Q29&B30&C30&D30&E30&F30&G30&H30&I30&J30&K30&L30&M30&N30&O30&P30&Q30&B31&C31&D31&E31&F31&G31&H31&I31&J31&K31&L31&M31&N31&O31&P31&Q31&B32&C32&D32&E32&F32&G32&H32&I32&J32&K32&L32&M32&N32&O32&P32&Q32&B33&C33&D33&E33&F33&G33&H33&I33&J33&K33&L33&M33&N33&O33&P33&Q33&B34&C34&D34&E34&F34&G34&H34&I34&J34&K34&L34&M34&N34&O34&P34&Q34&B35&C35&D35&E35&F35&G35&H35&I35&J35&K35&L35&M35&N35&O35&P35&Q35&B36&C36&D36&E36&F36&G36&H36&I36&J36&K36&L36&M36&N36&O36&P36&Q36&B37&C37&D37&E37&F37&G37&H37&I37&J37&K37&L37&M37&N37&O37&P37&Q37&B38&C38&D38&E38&F38&G38&H38&I38&J38&K38&L38&M38&N38&O38&P38&Q38 -> 0001000200192328323C4B64788CA0ACAFACAAA7A6A29F9D9C9B9B9896938E87821E2A30394556738EAFC8D2D2D2D2D2CFCDC8C3BEB9B6AFA7A29D948F6A019064057864004E2064635F6401903C03E864646464646464004B007700A800E6012201606464325A6E010696965A829600014502640FDC1C8AB404000000000100015F880F010200030414100A0300284B6E96BE000000000000000000000000000000000000000000000000000000000000000000000000000000000000000000000000000000000000000000000000000000000000000000000000000000000000000000000000000000000000000000

Sheet modified hex slots (hidden)
H2: MODIFIED HEX SLOTS MEGANE RS TROPHY STAGE 1
I4: Slot 1
B5: 00 | C5: 01 | D5: 02 | E5: 03 | F5: 04 | G5: 05 | H5: 06 | I5: 07 | J5: 08 | K5: 09 | L5: 0A | M5: 0B | N5: 0C | O5: 0D | P5: 0E | Q5: 0F
A6: 00000B10 | B6: 00 | C6: 02 | D6: 00 | E6: 01 | F6: 00 | G6: 0A | H6: =LEFT(RIGHT("0"&DEC2HEX(configuration!B6*10),4),2) -> 10 | I6: =RIGHT(RIGHT("0"&DEC2HEX(configuration!B6*10),4),2) -> 68 | J6: 01 | K6: 08 | L6: 00 | M6: 05 | N6: =LEFT(RIGHT("0"&DEC2HEX(configuration!B5*10),4),2) -> 0C | O6: =RIGHT(RIGHT("0"&DEC2HEX(configuration!B5*10),4),2) -> B2 | P6: 01 | Q6: 0B | S6: new engine max power
A7: 00000B20 | B7: 2E | C7: E0 | D7: 2E | E7: E0 | F7: =DEC2HEX(CEILING((configuration!B7+1185)/25.6,1)) -> 6D | G7: 90 | H7: 01 | I7: 07 | J7: 5A | K7: 5A | L7: BE | M7: 01 | N7: 0A | O7: 3C | P7: 3C | Q7: 78 | S7: new engine max torque
A8: 00000B30 | B8: 01 | C8: 04 | D8: 2E | E8: E0 | F8: 2E | G8: E0 | H8: 32 | I8: C8 | J8: 01 | K8: 04 | L8: 2E | M8: E0 | N8: 2E | O8: E0 | P8: 34 | Q8: 58 | S8: new max turbo pressure
A9: 00000B40 | B9: 01 | C9: 07 | D9: 6E | E9: 6E | F9: A0 | G9: 01 | H9: 05 | I9: 00 | J9: 00 | K9: 19 | L9: 0A | M9: 0A | N9: 27 | O9: 10 | P9: 27 | Q9: 10
A10: 00000B50 | B10: 36 | C10: B0 | D10: 01 | E10: 0A | F10: 5F | G10: 5F | H10: 91 | I10: 01 | J10: 0A | K10: 64 | L10: 64 | M10: 6E | N10: 01 | O10: 00 | P10: 00 | Q10: 00
A11: 00000B60 | B11: 0A | C11: 01 | D11: 00 | E11: 00 | F11: 00 | G11: 8C | H11: 01 | I11: 07 | J11: 2E | K11: E0 | L11: 32 | M11: C8 | N11: 84 | O11: D0 | P11: 01 | Q11: 0B
A12: 00000B70 | B12: 00 | C12: 01 | D12: 02 | E12: 03 | F12: 04 | G12: 05 | H12: 06 | I12: 07 | J12: 02 | K12: 04 | L12: 00 | M12: 09 | N12: =IF(configuration!B12="ON","01","00") -> 01 | O12: =IF(configuration!B13="ON","01","00") -> 01 | P12: =IF(configuration!B14="ON","01","00") -> 01 | Q12: =IF(configuration!B15="ON","01","00") -> 00 | S12: new monitor screen configuration
A13: 00000B80 | B13: =IF(configuration!B16="ON","01","00") -> 00 | C13: =IF(configuration!B17="ON","01","00") -> 00 | D13: =IF(configuration!B18="ON","01","00") -> 01 | E13: =IF(configuration!B19="ON","01","00") -> 01 | F13: =IF(configuration!B20="ON","01","00") -> 01 | G13: 80 | H13: 80 | I13: 80 | J13: 80 | K13: 75 | L13: 75 | M13: 75 | N13: 72 | O13: 6B | P13: 6A | Q13: 68 | S13: Unknown graphs
A14: 00000B90 | B14: 65 | C14: 61 | D14: 60 | E14: 5E | F14: 61 | G14: 5A | H14: 58 | I14: 54 | J14: 61 | K14: 54 | L14: 51 | M14: 4B | N14: 61 | O14: 4F | P14: 4B | Q14: 44
A15: 00000BA0 | B15: 61 | C15: 4B | D15: 46 | E15: 3E | F15: 61 | G15: 4A | H15: 44 | I15: 3E | J15: 61 | K15: 4B | L15: 44 | M15: 3E | N15: 61 | O15: 4D | P15: 44 | Q15: 3E
A16: 00000BB0 | B16: 61 | C16: 4D | D16: 44 | E16: 3E | F16: 61 | G16: 80 | H16: 80 | I16: 80 | J16: 80 | K16: 83 | L16: 83 | M16: 83 | N16: 83 | O16: 85 | P16: 85 | Q16: 84
A17: 00000BC0 | B17: 81 | C17: 88 | D17: 87 | E17: 87 | F17: 7F | G17: 8C | H17: 8B | I17: 89 | J17: 7F | K17: 90 | L17: 8F | M17: 8C | N17: 7F | O17: 97 | P17: 95 | Q17: 8F
A18: 00000BD0 | B18: 7F | C18: 9E | D18: 9B | E18: 8F | F18: 7F | G18: A8 | H18: A2 | I18: 8F | J18: 7F | K18: B3 | L18: A2 | M18: 8F | N18: 7F | O18: BA | P18: A2 | Q18: 8F
A19: 00000BE0 | B19: 7F | C19: BA | D19: A2 | E19: 8F | F19: 7F | G19: 14 | H19: 50 | I19: 6E | J19: 01 | K19: 32 | L19: 01 | M19: 28 | N19: 05 | O19: 96 | P19: 23 | Q19: 00
A20: 00000BF0 | B20: 00 | C20: 00 | D20: 00 | E20: 00 | F20: 00 | G20: 00 | H20: 00 | I20: 00 | J20: 00 | K20: 00 | L20: 00 | M20: 00 | N20: 00 | O20: 00 | P20: 00 | Q20: 00
I23: Slot 2
B24: 00 | C24: 01 | D24: 02 | E24: 03 | F24: 04 | G24: 05 | H24: 06 | I24: 07 | J24: 08 | K24: 09 | L24: 0A | M24: 0B | N24: 0C | O24: 0D | P24: 0E | Q24: 0F
A25: 00000C00 | B25: 00 | C25: 01 | D25: 00 | E25: 02 | F25: 00 | G25: =DEC2HEX(configuration!B27/2) -> 19 | H25: =DEC2HEX(configuration!B28/2) -> 23 | I25: =DEC2HEX(configuration!B29/2) -> 28 | J25: =DEC2HEX(configuration!B30/2) -> 32 | K25: =DEC2HEX(configuration!B31/2) -> 3C | L25: =DEC2HEX(configuration!B32/2) -> 4B | M25: =DEC2HEX(configuration!B33/2) -> 64 | N25: =DEC2HEX(configuration!B34/2) -> 78 | O25: =DEC2HEX(configuration!B35/2) -> 8C | P25: =DEC2HEX(configuration!B36/2) -> A0 | Q25: =DEC2HEX(configuration!B37/2) -> AC | S25: new torque values normal mode
A26: 00000C10 | B26: =DEC2HEX(configuration!B38/2) -> AF | C26: =DEC2HEX(configuration!B39/2) -> AC | D26: =DEC2HEX(configuration!B40/2) -> AA | E26: =DEC2HEX(configuration!B41/2) -> A7 | F26: =DEC2HEX(configuration!B42/2) -> A6 | G26: =DEC2HEX(configuration!B43/2) -> A2 | H26: =DEC2HEX(configuration!B44/2) -> 9F | I26: =DEC2HEX(configuration!B45/2) -> 9D | J26: =DEC2HEX(configuration!B46/2) -> 9C | K26: =DEC2HEX(configuration!B47/2) -> 9B | L26: =DEC2HEX(configuration!B48/2) -> 9B | M26: =DEC2HEX(configuration!B49/2) -> 98 | N26: =DEC2HEX(configuration!B50/2) -> 96 | O26: =DEC2HEX(configuration!B51/2) -> 93 | P26: =DEC2HEX(configuration!B52/2) -> 8E | Q26: =DEC2HEX(configuration!B53/2) -> 87 | S26: new torque values sport mode
A27: 00000C20 | B27: =DEC2HEX(configuration!B54/2) -> 82 | C27: =DEC2HEX(configuration!C27/2) -> 1E | D27: =DEC2HEX(configuration!C28/2) -> 2A | E27: =DEC2HEX(configuration!C29/2) -> 30 | F27: =DEC2HEX(configuration!C30/2) -> 39 | G27: =DEC2HEX(configuration!C31/2) -> 45 | H27: =DEC2HEX(configuration!C32/2) -> 56 | I27: =DEC2HEX(configuration!C33/2) -> 73 | J27: =DEC2HEX(configuration!C34/2) -> 8E | K27: =DEC2HEX(configuration!C35/2) -> AF | L27: =DEC2HEX(configuration!C36/2) -> C8 | M27: =DEC2HEX(configuration!C37/2) -> D2 | N27: =DEC2HEX(configuration!C38/2) -> D2 | O27: =DEC2HEX(configuration!C39/2) -> D2 | P27: =DEC2HEX(configuration!C40/2) -> D2 | Q27: =DEC2HEX(configuration!C41/2) -> D2
A28: 00000C30 | B28: =DEC2HEX(configuration!C42/2) -> CF | C28: =DEC2HEX(configuration!C43/2) -> CD | D28: =DEC2HEX(configuration!C44/2) -> C8 | E28: =DEC2HEX(configuration!C45/2) -> C3 | F28: =DEC2HEX(configuration!C46/2) -> BE | G28: =DEC2HEX(configuration!C47/2) -> B9 | H28: =DEC2HEX(configuration!C48/2) -> B6 | I28: =DEC2HEX(configuration!C49/2) -> AF | J28: =DEC2HEX(configuration!C50/2) -> A7 | K28: =DEC2HEX(configuration!C51/2) -> A2 | L28: =DEC2HEX(configuration!C52/2) -> 9D | M28: =DEC2HEX(configuration!C53/2) -> 94 | N28: =DEC2HEX(configuration!C54/2) -> 8F | O28: 6A | P28: 01 | Q28: 90
A29: 00000C40 | B29: 64 | C29: 05 | D29: 78 | E29: 64 | F29: 00 | G29: 4E | H29: 20 | I29: 64 | J29: 63 | K29: 5F | L29: 64 | M29: 01 | N29: 90 | O29: 3C | P29: 03 | Q29: E8
A30: 00000C50 | B30: 64 | C30: 64 | D30: 64 | E30: 64 | F30: 64 | G30: 64 | H30: 64 | I30: 00 | J30: 4B | K30: 00 | L30: 77 | M30: 00 | N30: A8 | O30: 00 | P30: E6 | Q30: 01
A31: 00000C60 | B31: 22 | C31: 01 | D31: 60 | E31: 64 | F31: 64 | G31: 32 | H31: 5A | I31: 6E | J31: 01 | K31: 06 | L31: 96 | M31: 96 | N31: 5A | O31: 82 | P31: 96 | Q31: 00
A32: 00000C70 | B32: 01 | C32: 45 | D32: 02 | E32: 64 | F32: 0F | G32: DC | H32: 1C | I32: 8A | J32: B4 | K32: 04 | L32: 00 | M32: 00 | N32: 00 | O32: 00 | P32: 01 | Q32: 00
A33: 00000C80 | B33: 01 | C33: 5F | D33: =DEC2HEX(configuration!B8/100*2) -> 88 | E33: 0F | F33: 01 | G33: 02 | H33: 00 | I33: 03 | J33: 04 | K33: 14 | L33: 10 | M33: 0A | N33: 03 | O33: 00 | P33: 28 | Q33: 4B | S33: new max RPM
A34: 00000C90 | B34: 6E | C34: 96 | D34: BE | E34: 00 | F34: 00 | G34: 00 | H34: 00 | I34: 00 | J34: 00 | K34: 00 | L34: 00 | M34: 00 | N34: 00 | O34: 00 | P34: 00 | Q34: 00 | S34: model (Clio GT RS200 RS220 Meg3 RS trophy)
B35: 00 | C35: 00 | D35: 00 | E35: 00 | F35: 00 | G35: 00 | H35: 00 | I35: 00 | J35: 00 | K35: 00 | L35: 00 | M35: 00 | N35: 00 | O35: 00 | P35: 00 | Q35: 00
B36: 00 | C36: 00 | D36: 00 | E36: 00 | F36: 00 | G36: 00 | H36: 00 | I36: 00 | J36: 00 | K36: 00 | L36: 00 | M36: 00 | N36: 00 | O36: 00 | P36: 00 | Q36: 00
B37: 00 | C37: 00 | D37: 00 | E37: 00 | F37: 00 | G37: 00 | H37: 00 | I37: 00 | J37: 00 | K37: 00 | L37: 00 | M37: 00 | N37: 00 | O37: 00 | P37: 00 | Q37: 00
B38: 00 | C38: 00 | D38: 00 | E38: 00 | F38: 00 | G38: 00 | H38: 00 | I38: 00 | J38: 00 | K38: 00 | L38: 00 | M38: 00 | N38: 00 | O38: 00 | P38: 00 | Q38: 00
B39: 00 | C39: 00 | D39: 00 | E39: 00 | F39: 00 | G39: 00 | H39: 00 | I39: 00 | J39: 00 | K39: 00 | L39: 00 | M39: 00 | N39: 00 | O39: 00 | P39: 00 | Q39: 00
A42: Merged modified table data Slot 1 to be copied into DDT4all
A43: =B6&C6&D6&E6&F6&G6&H6&I6&J6&K6&L6&M6&N6&O6&P6&Q6&B7&C7&D7&E7&F7&G7&H7&I7&J7&K7&L7&M7&N7&O7&P7&Q7&B8&C8&D8&E8&F8&G8&H8&I8&J8&K8&L8&M8&N8&O8&P8&Q8&B9&C9&D9&E9&F9&G9&H9&I9&J9&K9&L9&M9&N9&O9&P9&Q9&B10&C10&D10&E10&F10&G10&H10&I10&J10&K10&L10&M10&N10&O10&P10&Q10&B11&C11&D11&E11&F11&G11&H11&I11&J11&K11&L11&M11&N11&O11&P11&Q11&B12&C12&D12&E12&F12&G12&H12&I12&J12&K12&L12&M12&N12&O12&P12&Q12&B13&C13&D13&E13&F13&G13&H13&I13&J13&K13&L13&M13&N13&O13&P13&Q13&B14&C14&D14&E14&F14&G14&H14&I14&J14&K14&L14&M14&N14&O14&P14&Q14&B15&C15&D15&E15&F15&G15&H15&I15&J15&K15&L15&M15&N15&O15&P15&Q15&B16&C16&D16&E16&F16&G16&H16&I16&J16&K16&L16&M16&N16&O16&P16&Q16&B17&C17&D17&E17&F17&G17&H17&I17&J17&K17&L17&M17&N17&O17&P17&Q17&B18&C18&D18&E18&F18&G18&H18&I18&J18&K18&L18&M18&N18&O18&P18&Q18&B19&C19&D19&E19&F19&G19&H19&I19&J19&K19&L19&M19&N19&O19&P19&Q19&B20&C20&D20&E20&F20&G20&H20&I20&J20&K20&L20&M20&N20&O20&P20&Q20 -> 00020001000A1068010800050CB2010B2EE02EE06D9001075A5ABE010A3C3C7801042EE02EE032C801042EE02EE0345801076E6EA001050000190A0A2710271036B0010A5F5F91010A64646E010000000A010000008C01072EE032C884D0010B00010203040506070204000901010100000001010180808080757575726B6A686561605E615A58546154514B614F4B44614B463E614A443E614B443E614D443E614D443E618080808083838383858584818887877F8C8B897F908F8C7F97958F7F9E9B8F7FA8A28F7FB3A28F7FBAA28F7FBAA28F7F14506E013201280596230000000000000000000000000000000000
A45: Merged modified table data Slot 2 to be copied into DDT4all
A46: =B25&C25&D25&E25&F25&G25&H25&I25&J25&K25&L25&M25&N25&O25&P25&Q25&B26&C26&D26&E26&F26&G26&H26&I26&J26&K26&L26&M26&N26&O26&P26&Q26&B27&C27&D27&E27&F27&G27&H27&I27&J27&K27&L27&M27&N27&O27&P27&Q27&B28&C28&D28&E28&F28&G28&H28&I28&J28&K28&L28&M28&N28&O28&P28&Q28&B29&C29&D29&E29&F29&G29&H29&I29&J29&K29&L29&M29&N29&O29&P29&Q29&B30&C30&D30&E30&F30&G30&H30&I30&J30&K30&L30&M30&N30&O30&P30&Q30&B31&C31&D31&E31&F31&G31&H31&I31&J31&K31&L31&M31&N31&O31&P31&Q31&B32&C32&D32&E32&F32&G32&H32&I32&J32&K32&L32&M32&N32&O32&P32&Q32&B33&C33&D33&E33&F33&G33&H33&I33&J33&K33&L33&M33&N33&O33&P33&Q33&B34&C34&D34&E34&F34&G34&H34&I34&J34&K34&L34&M34&N34&O34&P34&Q34&B35&C35&D35&E35&F35&G35&H35&I35&J35&K35&L35&M35&N35&O35&P35&Q35&B36&C36&D36&E36&F36&G36&H36&I36&J36&K36&L36&M36&N36&O36&P36&Q36&B37&C37&D37&E37&F37&G37&H37&I37&J37&K37&L37&M37&N37&O37&P37&Q37&B38&C38&D38&E38&F38&G38&H38&I38&J38&K38&L38&M38&N38&O38&P38&Q38&B39&C39&D39&E39&F39&G39&H39&I39&J39&K39&L39&M39&N39&O39&P39&Q39 -> 0001000200192328323C4B64788CA0ACAFACAAA7A6A29F9D9C9B9B9896938E87821E2A30394556738EAFC8D2D2D2D2D2CFCDC8C3BEB9B6AFA7A29D948F6A019064057864004E2064635F6401903C03E864646464646464004B007700A800E6012201606464325A6E010696965A829600014502640FDC1C8AB404000000000100015F880F010200030414100A0300284B6E96BE000000000000000000000000000000000000000000000000000000000000000000000000000000000000000000000000000000000000000000000000000000000000000000000000000000000000000000000000000000000000000000

Sheet original hex slots (hidden)
I6: Slot 1
B7: 00 | C7: 01 | D7: 02 | E7: 03 | F7: 04 | G7: 05 | H7: 06 | I7: 07 | J7: 08 | K7: 09 | L7: 0A | M7: 0B | N7: 0C | O7: 0D | P7: 0E | Q7: 0F
A8: 00000B10 | B8: 00 | C8: 02 | D8: 00 | E8: 01 | F8: 00 | G8: 0A | H8: 0E | I8: 10 | J8: 01 | K8: 08 | L8: 00 | M8: 05 | N8: 0A | O8: BE | P8: 01 | Q8: 0B
A9: 00000B20 | B9: 2E | C9: E0 | D9: 2E | E9: E0 | F9: 65 | G9: 90 | H9: 01 | I9: 07 | J9: 5A | K9: 5A | L9: BE | M9: 01 | N9: 0A | O9: 3C | P9: 3C | Q9: 78
A10: 00000B30 | B10: 01 | C10: 04 | D10: 2E | E10: E0 | F10: 2E | G10: E0 | H10: 32 | I10: C8 | J10: 01 | K10: 04 | L10: 2E | M10: E0 | N10: 2E | O10: E0 | P10: 34 | Q10: 58
A11: 00000B40 | B11: 01 | C11: 07 | D11: 6E | E11: 6E | F11: A0 | G11: 01 | H11: 05 | I11: 00 | J11: 00 | K11: 19 | L11: 0A | M11: 0A | N11: 27 | O11: 10 | P11: 27 | Q11: 10
A12: 00000B50 | B12: 36 | C12: B0 | D12: 01 | E12: 0A | F12: 5F | G12: 5F | H12: 91 | I12: 01 | J12: 0A | K12: 64 | L12: 64 | M12: 6E | N12: 01 | O12: 00 | P12: 00 | Q12: 00
A13: 00000B60 | B13: 0A | C13: 01 | D13: 00 | E13: 00 | F13: 00 | G13: 8C | H13: 01 | I13: 07 | J13: 2E | K13: E0 | L13: 32 | M13: C8 | N13: 84 | O13: D0 | P13: 01 | Q13: 0B
A14: 00000B70 | B14: 00 | C14: 01 | D14: 02 | E14: 03 | F14: 04 | G14: 05 | H14: 06 | I14: 07 | J14: 02 | K14: 04 | L14: 00 | M14: 09 | N14: 01 | O14: 00 | P14: 01 | Q14: 01
A15: 00000B80 | B15: 01 | C15: 01 | D15: 01 | E15: 00 | F15: 01 | G15: 80 | H15: 80 | I15: 80 | J15: 80 | K15: 75 | L15: 75 | M15: 75 | N15: 72 | O15: 6B | P15: 6A | Q15: 68
A16: 00000B90 | B16: 65 | C16: 61 | D16: 60 | E16: 5E | F16: 61 | G16: 5A | H16: 58 | I16: 54 | J16: 61 | K16: 54 | L16: 51 | M16: 4B | N16: 61 | O16: 4F | P16: 4B | Q16: 44
A17: 00000BA0 | B17: 61 | C17: 4B | D17: 46 | E17: 3E | F17: 61 | G17: 4A | H17: 44 | I17: 3E | J17: 61 | K17: 4B | L17: 44 | M17: 3E | N17: 61 | O17: 4D | P17: 44 | Q17: 3E
A18: 00000BB0 | B18: 61 | C18: 4D | D18: 44 | E18: 3E | F18: 61 | G18: 80 | H18: 80 | I18: 80 | J18: 80 | K18: 83 | L18: 83 | M18: 83 | N18: 83 | O18: 85 | P18: 85 | Q18: 84
A19: 00000BC0 | B19: 81 | C19: 88 | D19: 87 | E19: 87 | F19: 7F | G19: 8C | H19: 8B | I19: 89 | J19: 7F | K19: 90 | L19: 8F | M19: 8C | N19: 7F | O19: 97 | P19: 95 | Q19: 8F
A20: 00000BD0 | B20: 7F | C20: 9E | D20: 9B | E20: 8F | F20: 7F | G20: A8 | H20: A2 | I20: 8F | J20: 7F | K20: B3 | L20: A2 | M20: 8F | N20: 7F | O20: BA | P20: A2 | Q20: 8F
A21: 00000BE0 | B21: 7F | C21: BA | D21: A2 | E21: 8F | F21: 7F | G21: 14 | H21: 50 | I21: 6E | J21: 01 | K21: 32 | L21: 01 | M21: 28 | N21: 05 | O21: 96 | P21: 23 | Q21: 00
A22: 00000BF0 | B22: 00 | C22: 00 | D22: 00 | E22: 00 | F22: 00 | G22: 00 | H22: 00 | I22: 00 | J22: 00 | K22: 00 | L22: 00 | M22: 00 | N22: 00 | O22: 00 | P22: 00 | Q22: 00
I25: Slot 2
B26: 00 | C26: 01 | D26: 02 | E26: 03 | F26: 04 | G26: 05 | H26: 06 | I26: 07 | J26: 08 | K26: 09 | L26: 0A | M26: 0B | N26: 0C | O26: 0D | P26: 0E | Q26: 0F
A27: 00000C00 | B27: 00 | C27: 01 | D27: 00 | E27: 02 | F27: 00 | G27: 52 | H27: 5F | I27: 6F | J27: 7F | K27: 8F | L27: 9A | M27: A3 | N27: A7 | O27: AA | P27: AA | Q27: AA
A28: 00000C10 | B28: A8 | C28: A7 | D28: A6 | E28: A5 | F28: A3 | G28: A2 | H28: A1 | I28: 9B | J28: 95 | K28: 8E | L28: 86 | M28: 7E | N28: 64 | O28: 4B | P28: 32 | Q28: 32
A29: 00000C20 | B29: 32 | C29: 52 | D29: 5F | E29: 6F | F29: 7F | G29: 92 | H29: 9E | I29: AA | J29: B4 | K29: B4 | L29: B4 | M29: B4 | N29: B4 | O29: B4 | P29: B4 | Q29: B4
A30: 00000C30 | B30: B4 | C30: B2 | D30: B1 | E30: B0 | F30: A8 | G30: 9B | H30: 8C | I30: 7E | J30: 64 | K30: 4B | L30: 32 | M30: 32 | N30: 32 | O30: 6A | P30: 01 | Q30: 90
A31: 00000C40 | B31: 64 | C31: 05 | D31: 78 | E31: 64 | F31: 00 | G31: 4E | H31: 20 | I31: 64 | J31: 63 | K31: 5F | L31: 64 | M31: 01 | N31: 90 | O31: 3C | P31: 03 | Q31: E8
A32: 00000C50 | B32: 64 | C32: 64 | D32: 64 | E32: 64 | F32: 64 | G32: 64 | H32: 64 | I32: 00 | J32: 4B | K32: 00 | L32: 77 | M32: 00 | N32: A8 | O32: 00 | P32: E6 | Q32: 01
A33: 00000C60 | B33: 22 | C33: 01 | D33: 60 | E33: 64 | F33: 64 | G33: 32 | H33: 5A | I33: 6E | J33: 01 | K33: 06 | L33: 96 | M33: 96 | N33: 5A | O33: 82 | P33: 96 | Q33: 00
A34: 00000C70 | B34: 01 | C34: 45 | D34: 02 | E34: 64 | F34: 0F | G34: DC | H34: 1C | I34: 8A | J34: B4 | K34: 04 | L34: 00 | M34: 00 | N34: 00 | O34: 00 | P34: 01 | Q34: 00
A35: 00000C80 | B35: 01 | C35: 5F | D35: 88 | E35: 0F | F35: 01 | G35: 02 | H35: 00 | I35: 03 | J35: 04 | K35: 14 | L35: 10 | M35: 0A | N35: 03 | O35: 00 | P35: 28 | Q35: 4B
A36: 00000C90 | B36: 6E | C36: 96 | D36: BE | E36: 00 | F36: 00 | G36: 00 | H36: 00 | I36: 00 | J36: 00 | K36: 00 | L36: 00 | M36: 00 | N36: 00 | O36: 00 | P36: 00 | Q36: 00
B37: 00 | C37: 00 | D37: 00 | E37: 00 | F37: 00 | G37: 00 | H37: 00 | I37: 00 | J37: 00 | K37: 00 | L37: 00 | M37: 00 | N37: 00 | O37: 00 | P37: 00 | Q37: 00
B38: 00 | C38: 00 | D38: 00 | E38: 00 | F38: 00 | G38: 00 | H38: 00 | I38: 00 | J38: 00 | K38: 00 | L38: 00 | M38: 00 | N38: 00 | O38: 00 | P38: 00 | Q38: 00
B39: 00 | C39: 00 | D39: 00 | E39: 00 | F39: 00 | G39: 00 | H39: 00 | I39: 00 | J39: 00 | K39: 00 | L39: 00 | M39: 00 | N39: 00 | O39: 00 | P39: 00 | Q39: 00
B40: 00 | C40: 00 | D40: 00 | E40: 00 | F40: 00 | G40: 00 | H40: 00 | I40: 00 | J40: 00 | K40: 00 | L40: 00 | M40: 00 | N40: 00 | O40: 00 | P40: 00 | Q40: 00
B41: 00 | C41: 00 | D41: 00 | E41: 00 | F41: 00 | G41: 00 | H41: 00 | I41: 00 | J41: 00 | K41: 00 | L41: 00 | M41: 00 | N41: 00 | O41: 00 | P41: 00 | Q41: 00

Sheet original dec slots (hidden)
I3: Slot 1
B4: 00 | C4: 01 | D4: 02 | E4: 03 | F4: 04 | G4: 05 | H4: 06 | I4: 07 | J4: 08 | K4: 09 | L4: 0A | M4: 0A | N4: 0C | O4: 0D | P4: 0E | Q4: 0F
A5: 00000B10 | B5: =HEX2DEC('original hex slots'!B8) -> 0 | C5: =HEX2DEC('original hex slots'!C8) -> 2 | D5: =HEX2DEC('original hex slots'!D8) -> 0 | E5: =HEX2DEC('original hex slots'!E8) -> 1 | F5: =HEX2DEC('original hex slots'!F8) -> 0 | G5: =HEX2DEC('original hex slots'!G8) -> 10 | H5: =HEX2DEC('original hex slots'!H8) -> 14 | I5: =HEX2DEC('original hex slots'!I8) -> 16 | J5: =HEX2DEC('original hex slots'!J8) -> 1 | K5: =HEX2DEC('original hex slots'!K8) -> 8 | L5: =HEX2DEC('original hex slots'!L8) -> 0 | M5: =HEX2DEC('original hex slots'!M8) -> 5 | N5: =HEX2DEC('original hex slots'!N8) -> 10 | O5: =HEX2DEC('original hex slots'!O8) -> 190 | P5: =HEX2DEC('original hex slots'!P8) -> 1 | Q5: =HEX2DEC('original hex slots'!Q8) -> 11
A6: 00000B20 | B6: =HEX2DEC('original hex slots'!B9) -> 46 | C6: =HEX2DEC('original hex slots'!C9) -> 224 | D6: =HEX2DEC('original hex slots'!D9) -> 46 | E6: =HEX2DEC('original hex slots'!E9) -> 224 | F6: =HEX2DEC('original hex slots'!F9) -> 101 | G6: =HEX2DEC('original hex slots'!G9) -> 144 | H6: =HEX2DEC('original hex slots'!H9) -> 1 | I6: =HEX2DEC('original hex slots'!I9) -> 7 | J6: =HEX2DEC('original hex slots'!J9) -> 90 | K6: =HEX2DEC('original hex slots'!K9) -> 90 | L6: =HEX2DEC('original hex slots'!L9) -> 190 | M6: =HEX2DEC('original hex slots'!M9) -> 1 | N6: =HEX2DEC('original hex slots'!N9) -> 10 | O6: =HEX2DEC('original hex slots'!O9) -> 60 | P6: =HEX2DEC('original hex slots'!P9) -> 60 | Q6: =HEX2DEC('original hex slots'!Q9) -> 120
A7: 00000B30 | B7: =HEX2DEC('original hex slots'!B10) -> 1 | C7: =HEX2DEC('original hex slots'!C10) -> 4 | D7: =HEX2DEC('original hex slots'!D10) -> 46 | E7: =HEX2DEC('original hex slots'!E10) -> 224 | F7: =HEX2DEC('original hex slots'!F10) -> 46 | G7: =HEX2DEC('original hex slots'!G10) -> 224 | H7: =HEX2DEC('original hex slots'!H10) -> 50 | I7: =HEX2DEC('original hex slots'!I10) -> 200 | J7: =HEX2DEC('original hex slots'!J10) -> 1 | K7: =HEX2DEC('original hex slots'!K10) -> 4 | L7: =HEX2DEC('original hex slots'!L10) -> 46 | M7: =HEX2DEC('original hex slots'!M10) -> 224 | N7: =HEX2DEC('original hex slots'!N10) -> 46 | O7: =HEX2DEC('original hex slots'!O10) -> 224 | P7: =HEX2DEC('original hex slots'!P10) -> 52 | Q7: =HEX2DEC('original hex slots'!Q10) -> 88
A8: 00000B40 | B8: =HEX2DEC('original hex slots'!B11) -> 1 | C8: =HEX2DEC('original hex slots'!C11) -> 7 | D8: =HEX2DEC('original hex slots'!D11) -> 110 | E8: =HEX2DEC('original hex slots'!E11) -> 110 | F8: =HEX2DEC('original hex slots'!F11) -> 160 | G8: =HEX2DEC('original hex slots'!G11) -> 1 | H8: =HEX2DEC('original hex slots'!H11) -> 5 | I8: =HEX2DEC('original hex slots'!I11) -> 0 | J8: =HEX2DEC('original hex slots'!J11) -> 0 | K8: =HEX2DEC('original hex slots'!K11) -> 25 | L8: =HEX2DEC('original hex slots'!L11) -> 10 | M8: =HEX2DEC('original hex slots'!M11) -> 10 | N8: =HEX2DEC('original hex slots'!N11) -> 39 | O8: =HEX2DEC('original hex slots'!O11) -> 16 | P8: =HEX2DEC('original hex slots'!P11) -> 39 | Q8: =HEX2DEC('original hex slots'!Q11) -> 16
A9: 00000B50 | B9: =HEX2DEC('original hex slots'!B12) -> 54 | C9: =HEX2DEC('original hex slots'!C12) -> 176 | D9: =HEX2DEC('original hex slots'!D12) -> 1 | E9: =HEX2DEC('original hex slots'!E12) -> 10 | F9: =HEX2DEC('original hex slots'!F12) -> 95 | G9: =HEX2DEC('original hex slots'!G12) -> 95 | H9: =HEX2DEC('original hex slots'!H12) -> 145 | I9: =HEX2DEC('original hex slots'!I12) -> 1 | J9: =HEX2DEC('original hex slots'!J12) -> 10 | K9: =HEX2DEC('original hex slots'!K12) -> 100 | L9: =HEX2DEC('original hex slots'!L12) -> 100 | M9: =HEX2DEC('original hex slots'!M12) -> 110 | N9: =HEX2DEC('original hex slots'!N12) -> 1 | O9: =HEX2DEC('original hex slots'!O12) -> 0 | P9: =HEX2DEC('original hex slots'!P12) -> 0 | Q9: =HEX2DEC('original hex slots'!Q12) -> 0
A10: 00000B60 | B10: =HEX2DEC('original hex slots'!B13) -> 10 | C10: =HEX2DEC('original hex slots'!C13) -> 1 | D10: =HEX2DEC('original hex slots'!D13) -> 0 | E10: =HEX2DEC('original hex slots'!E13) -> 0 | F10: =HEX2DEC('original hex slots'!F13) -> 0 | G10: =HEX2DEC('original hex slots'!G13) -> 140 | H10: =HEX2DEC('original hex slots'!H13) -> 1 | I10: =HEX2DEC('original hex slots'!I13) -> 7 | J10: =HEX2DEC('original hex slots'!J13) -> 46 | K10: =HEX2DEC('original hex slots'!K13) -> 224 | L10: =HEX2DEC('original hex slots'!L13) -> 50 | M10: =HEX2DEC('original hex slots'!M13) -> 200 | N10: =HEX2DEC('original hex slots'!N13) -> 132 | O10: =HEX2DEC('original hex slots'!O13) -> 208 | P10: =HEX2DEC('original hex slots'!P13) -> 1 | Q10: =HEX2DEC('original hex slots'!Q13) -> 11
A11: 00000B70 | B11: =HEX2DEC('original hex slots'!B14) -> 0 | C11: =HEX2DEC('original hex slots'!C14) -> 1 | D11: =HEX2DEC('original hex slots'!D14) -> 2 | E11: =HEX2DEC('original hex slots'!E14) -> 3 | F11: =HEX2DEC('original hex slots'!F14) -> 4 | G11: =HEX2DEC('original hex slots'!G14) -> 5 | H11: =HEX2DEC('original hex slots'!H14) -> 6 | I11: =HEX2DEC('original hex slots'!I14) -> 7 | J11: =HEX2DEC('original hex slots'!J14) -> 2 | K11: =HEX2DEC('original hex slots'!K14) -> 4 | L11: =HEX2DEC('original hex slots'!L14) -> 0 | M11: =HEX2DEC('original hex slots'!M14) -> 9 | N11: =HEX2DEC('original hex slots'!N14) -> 1 | O11: =HEX2DEC('original hex slots'!O14) -> 0 | P11: =HEX2DEC('original hex slots'!P14) -> 1 | Q11: =HEX2DEC('original hex slots'!Q14) -> 1
A12: 00000B80 | B12: =HEX2DEC('original hex slots'!B15) -> 1 | C12: =HEX2DEC('original hex slots'!C15) -> 1 | D12: =HEX2DEC('original hex slots'!D15) -> 1 | E12: =HEX2DEC('original hex slots'!E15) -> 0 | F12: =HEX2DEC('original hex slots'!F15) -> 1 | G12: =HEX2DEC('original hex slots'!G15) -> 128 | H12: =HEX2DEC('original hex slots'!H15) -> 128 | I12: =HEX2DEC('original hex slots'!I15) -> 128 | J12: =HEX2DEC('original hex slots'!J15) -> 128 | K12: =HEX2DEC('original hex slots'!K15) -> 117 | L12: =HEX2DEC('original hex slots'!L15) -> 117 | M12: =HEX2DEC('original hex slots'!M15) -> 117 | N12: =HEX2DEC('original hex slots'!N15) -> 114 | O12: =HEX2DEC('original hex slots'!O15) -> 107 | P12: =HEX2DEC('original hex slots'!P15) -> 106 | Q12: =HEX2DEC('original hex slots'!Q15) -> 104
A13: 00000B90 | B13: =HEX2DEC('original hex slots'!B16) -> 101 | C13: =HEX2DEC('original hex slots'!C16) -> 97 | D13: =HEX2DEC('original hex slots'!D16) -> 96 | E13: =HEX2DEC('original hex slots'!E16) -> 94 | F13: =HEX2DEC('original hex slots'!F16) -> 97 | G13: =HEX2DEC('original hex slots'!G16) -> 90 | H13: =HEX2DEC('original hex slots'!H16) -> 88 | I13: =HEX2DEC('original hex slots'!I16) -> 84 | J13: =HEX2DEC('original hex slots'!J16) -> 97 | K13: =HEX2DEC('original hex slots'!K16) -> 84 | L13: =HEX2DEC('original hex slots'!L16) -> 81 | M13: =HEX2DEC('original hex slots'!M16) -> 75 | N13: =HEX2DEC('original hex slots'!N16) -> 97 | O13: =HEX2DEC('original hex slots'!O16) -> 79 | P13: =HEX2DEC('original hex slots'!P16) -> 75 | Q13: =HEX2DEC('original hex slots'!Q16) -> 68
A14: 00000BA0 | B14: =HEX2DEC('original hex slots'!B17) -> 97 | C14: =HEX2DEC('original hex slots'!C17) -> 75 | D14: =HEX2DEC('original hex slots'!D17) -> 70 | E14: =HEX2DEC('original hex slots'!E17) -> 62 | F14: =HEX2DEC('original hex slots'!F17) -> 97 | G14: =HEX2DEC('original hex slots'!G17) -> 74 | H14: =HEX2DEC('original hex slots'!H17) -> 68 | I14: =HEX2DEC('original hex slots'!I17) -> 62 | J14: =HEX2DEC('original hex slots'!J17) -> 97 | K14: =HEX2DEC('original hex slots'!K17) -> 75 | L14: =HEX2DEC('original hex slots'!L17) -> 68 | M14: =HEX2DEC('original hex slots'!M17) -> 62 | N14: =HEX2DEC('original hex slots'!N17) -> 97 | O14: =HEX2DEC('original hex slots'!O17) -> 77 | P14: =HEX2DEC('original hex slots'!P17) -> 68 | Q14: =HEX2DEC('original hex slots'!Q17) -> 62
A15: 00000BB0 | B15: =HEX2DEC('original hex slots'!B18) -> 97 | C15: =HEX2DEC('original hex slots'!C18) -> 77 | D15: =HEX2DEC('original hex slots'!D18) -> 68 | E15: =HEX2DEC('original hex slots'!E18) -> 62 | F15: =HEX2DEC('original hex slots'!F18) -> 97 | G15: =HEX2DEC('original hex slots'!G18) -> 128 | H15: =HEX2DEC('original hex slots'!H18) -> 128 | I15: =HEX2DEC('original hex slots'!I18) -> 128 | J15: =HEX2DEC('original hex slots'!J18) -> 128 | K15: =HEX2DEC('original hex slots'!K18) -> 131 | L15: =HEX2DEC('original hex slots'!L18) -> 131 | M15: =HEX2DEC('original hex slots'!M18) -> 131 | N15: =HEX2DEC('original hex slots'!N18) -> 131 | O15: =HEX2DEC('original hex slots'!O18) -> 133 | P15: =HEX2DEC('original hex slots'!P18) -> 133 | Q15: =HEX2DEC('original hex slots'!Q18) -> 132
A16: 00000BC0 | B16: =HEX2DEC('original hex slots'!B19) -> 129 | C16: =HEX2DEC('original hex slots'!C19) -> 136 | D16: =HEX2DEC('original hex slots'!D19) -> 135 | E16: =HEX2DEC('original hex slots'!E19) -> 135 | F16: =HEX2DEC('original hex slots'!F19) -> 127 | G16: =HEX2DEC('original hex slots'!G19) -> 140 | H16: =HEX2DEC('original hex slots'!H19) -> 139 | I16: =HEX2DEC('original hex slots'!I19) -> 137 | J16: =HEX2DEC('original hex slots'!J19) -> 127 | K16: =HEX2DEC('original hex slots'!K19) -> 144 | L16: =HEX2DEC('original hex slots'!L19) -> 143 | M16: =HEX2DEC('original hex slots'!M19) -> 140 | N16: =HEX2DEC('original hex slots'!N19) -> 127 | O16: =HEX2DEC('original hex slots'!O19) -> 151 | P16: =HEX2DEC('original hex slots'!P19) -> 149 | Q16: =HEX2DEC('original hex slots'!Q19) -> 143
A17: 00000BD0 | B17: =HEX2DEC('original hex slots'!B20) -> 127 | C17: =HEX2DEC('original hex slots'!C20) -> 158 | D17: =HEX2DEC('original hex slots'!D20) -> 155 | E17: =HEX2DEC('original hex slots'!E20) -> 143 | F17: =HEX2DEC('original hex slots'!F20) -> 127 | G17: =HEX2DEC('original hex slots'!G20) -> 168 | H17: =HEX2DEC('original hex slots'!H20) -> 162 | I17: =HEX2DEC('original hex slots'!I20) -> 143 | J17: =HEX2DEC('original hex slots'!J20) -> 127 | K17: =HEX2DEC('original hex slots'!K20) -> 179 | L17: =HEX2DEC('original hex slots'!L20) -> 162 | M17: =HEX2DEC('original hex slots'!M20) -> 143 | N17: =HEX2DEC('original hex slots'!N20) -> 127 | O17: =HEX2DEC('original hex slots'!O20) -> 186 | P17: =HEX2DEC('original hex slots'!P20) -> 162 | Q17: =HEX2DEC('original hex slots'!Q20) -> 143
A18: 00000BE0 | B18: =HEX2DEC('original hex slots'!B21) -> 127 | C18: =HEX2DEC('original hex slots'!C21) -> 186 | D18: =HEX2DEC('original hex slots'!D21) -> 162 | E18: =HEX2DEC('original hex slots'!E21) -> 143 | F18: =HEX2DEC('original hex slots'!F21) -> 127 | G18: =HEX2DEC('original hex slots'!G21) -> 20 | H18: =HEX2DEC('original hex slots'!H21) -> 80 | I18: =HEX2DEC('original hex slots'!I21) -> 110 | J18: =HEX2DEC('original hex slots'!J21) -> 1 | K18: =HEX2DEC('original hex slots'!K21) -> 50 | L18: =HEX2DEC('original hex slots'!L21) -> 1 | M18: =HEX2DEC('original hex slots'!M21) -> 40 | N18: =HEX2DEC('original hex slots'!N21) -> 5 | O18: =HEX2DEC('original hex slots'!O21) -> 150 | P18: =HEX2DEC('original hex slots'!P21) -> 35 | Q18: =HEX2DEC('original hex slots'!Q21) -> 0
A19: 00000BF0 | B19: =HEX2DEC('original hex slots'!B22) -> 0 | C19: =HEX2DEC('original hex slots'!C22) -> 0 | D19: =HEX2DEC('original hex slots'!D22) -> 0 | E19: =HEX2DEC('original hex slots'!E22) -> 0 | F19: =HEX2DEC('original hex slots'!F22) -> 0 | G19: =HEX2DEC('original hex slots'!G22) -> 0 | H19: =HEX2DEC('original hex slots'!H22) -> 0 | I19: =HEX2DEC('original hex slots'!I22) -> 0 | J19: =HEX2DEC('original hex slots'!J22) -> 0 | K19: =HEX2DEC('original hex slots'!K22) -> 0 | L19: =HEX2DEC('original hex slots'!L22) -> 0 | M19: =HEX2DEC('original hex slots'!M22) -> 0 | N19: =HEX2DEC('original hex slots'!N22) -> 0 | O19: =HEX2DEC('original hex slots'!O22) -> 0 | P19: =HEX2DEC('original hex slots'!P22) -> 0 | Q19: =HEX2DEC('original hex slots'!Q22) -> 0
A22: torque decimal normal and sport /2 | I22: Slot 2
B23: 00 | C23: 01 | D23: 02 | E23: 03 | F23: 04 | G23: 05 | H23: 06 | I23: 07 | J23: 08 | K23: 09 | L23: 0A | M23: 0A | N23: 0C | O23: 0D | P23: 0E | Q23: 0F
A24: 00000C00 | B24: =HEX2DEC('original hex slots'!B27) -> 0 | C24: =HEX2DEC('original hex slots'!C27) -> 1 | D24: =HEX2DEC('original hex slots'!D27) -> 0 | E24: =HEX2DEC('original hex slots'!E27) -> 2 | F24: =HEX2DEC('original hex slots'!F27) -> 0 | G24: =HEX2DEC('original hex slots'!G27) -> 82 | H24: =HEX2DEC('original hex slots'!H27) -> 95 | I24: =HEX2DEC('original hex slots'!I27) -> 111 | J24: =HEX2DEC('original hex slots'!J27) -> 127 | K24: =HEX2DEC('original hex slots'!K27) -> 143 | L24: =HEX2DEC('original hex slots'!L27) -> 154 | M24: =HEX2DEC('original hex slots'!M27) -> 163 | N24: =HEX2DEC('original hex slots'!N27) -> 167 | O24: =HEX2DEC('original hex slots'!O27) -> 170 | P24: =HEX2DEC('original hex slots'!P27) -> 170 | Q24: =HEX2DEC('original hex slots'!Q27) -> 170
A25: 00000C10 | B25: =HEX2DEC('original hex slots'!B28) -> 168 | C25: =HEX2DEC('original hex slots'!C28) -> 167 | D25: =HEX2DEC('original hex slots'!D28) -> 166 | E25: =HEX2DEC('original hex slots'!E28) -> 165 | F25: =HEX2DEC('original hex slots'!F28) -> 163 | G25: =HEX2DEC('original hex slots'!G28) -> 162 | H25: =HEX2DEC('original hex slots'!H28) -> 161 | I25: =HEX2DEC('original hex slots'!I28) -> 155 | J25: =HEX2DEC('original hex slots'!J28) -> 149 | K25: =HEX2DEC('original hex slots'!K28) -> 142 | L25: =HEX2DEC('original hex slots'!L28) -> 134 | M25: =HEX2DEC('original hex slots'!M28) -> 126 | N25: =HEX2DEC('original hex slots'!N28) -> 100 | O25: =HEX2DEC('original hex slots'!O28) -> 75 | P25: =HEX2DEC('original hex slots'!P28) -> 50 | Q25: =HEX2DEC('original hex slots'!Q28) -> 50
A26: 00000C20 | B26: =HEX2DEC('original hex slots'!B29) -> 50 | C26: =HEX2DEC('original hex slots'!C29) -> 82 | D26: =HEX2DEC('original hex slots'!D29) -> 95 | E26: =HEX2DEC('original hex slots'!E29) -> 111 | F26: =HEX2DEC('original hex slots'!F29) -> 127 | G26: =HEX2DEC('original hex slots'!G29) -> 146 | H26: =HEX2DEC('original hex slots'!H29) -> 158 | I26: =HEX2DEC('original hex slots'!I29) -> 170 | J26: =HEX2DEC('original hex slots'!J29) -> 180 | K26: =HEX2DEC('original hex slots'!K29) -> 180 | L26: =HEX2DEC('original hex slots'!L29) -> 180 | M26: =HEX2DEC('original hex slots'!M29) -> 180 | N26: =HEX2DEC('original hex slots'!N29) -> 180 | O26: =HEX2DEC('original hex slots'!O29) -> 180 | P26: =HEX2DEC('original hex slots'!P29) -> 180 | Q26: =HEX2DEC('original hex slots'!Q29) -> 180
A27: 00000C30 | B27: =HEX2DEC('original hex slots'!B30) -> 180 | C27: =HEX2DEC('original hex slots'!C30) -> 178 | D27: =HEX2DEC('original hex slots'!D30) -> 177 | E27: =HEX2DEC('original hex slots'!E30) -> 176 | F27: =HEX2DEC('original hex slots'!F30) -> 168 | G27: =HEX2DEC('original hex slots'!G30) -> 155 | H27: =HEX2DEC('original hex slots'!H30) -> 140 | I27: =HEX2DEC('original hex slots'!I30) -> 126 | J27: =HEX2DEC('original hex slots'!J30) -> 100 | K27: =HEX2DEC('original hex slots'!K30) -> 75 | L27: =HEX2DEC('original hex slots'!L30) -> 50 | M27: =HEX2DEC('original hex slots'!M30) -> 50 | N27: =HEX2DEC('original hex slots'!N30) -> 50 | O27: =HEX2DEC('original hex slots'!O30) -> 106 | P27: =HEX2DEC('original hex slots'!P30) -> 1 | Q27: =HEX2DEC('original hex slots'!Q30) -> 144
A28: 00000C40 | B28: =HEX2DEC('original hex slots'!B31) -> 100 | C28: =HEX2DEC('original hex slots'!C31) -> 5 | D28: =HEX2DEC('original hex slots'!D31) -> 120 | E28: =HEX2DEC('original hex slots'!E31) -> 100 | F28: =HEX2DEC('original hex slots'!F31) -> 0 | G28: =HEX2DEC('original hex slots'!G31) -> 78 | H28: =HEX2DEC('original hex slots'!H31) -> 32 | I28: =HEX2DEC('original hex slots'!I31) -> 100 | J28: =HEX2DEC('original hex slots'!J31) -> 99 | K28: =HEX2DEC('original hex slots'!K31) -> 95 | L28: =HEX2DEC('original hex slots'!L31) -> 100 | M28: =HEX2DEC('original hex slots'!M31) -> 1 | N28: =HEX2DEC('original hex slots'!N31) -> 144 | O28: =HEX2DEC('original hex slots'!O31) -> 60 | P28: =HEX2DEC('original hex slots'!P31) -> 3 | Q28: =HEX2DEC('original hex slots'!Q31) -> 232
A29: 00000C50 | B29: =HEX2DEC('original hex slots'!B32) -> 100 | C29: =HEX2DEC('original hex slots'!C32) -> 100 | D29: =HEX2DEC('original hex slots'!D32) -> 100 | E29: =HEX2DEC('original hex slots'!E32) -> 100 | F29: =HEX2DEC('original hex slots'!F32) -> 100 | G29: =HEX2DEC('original hex slots'!G32) -> 100 | H29: =HEX2DEC('original hex slots'!H32) -> 100 | I29: =HEX2DEC('original hex slots'!I32) -> 0 | J29: =HEX2DEC('original hex slots'!J32) -> 75 | K29: =HEX2DEC('original hex slots'!K32) -> 0 | L29: =HEX2DEC('original hex slots'!L32) -> 119 | M29: =HEX2DEC('original hex slots'!M32) -> 0 | N29: =HEX2DEC('original hex slots'!N32) -> 168 | O29: =HEX2DEC('original hex slots'!O32) -> 0 | P29: =HEX2DEC('original hex slots'!P32) -> 230 | Q29: =HEX2DEC('original hex slots'!Q32) -> 1
A30: 00000C60 | B30: =HEX2DEC('original hex slots'!B33) -> 34 | C30: =HEX2DEC('original hex slots'!C33) -> 1 | D30: =HEX2DEC('original hex slots'!D33) -> 96 | E30: =HEX2DEC('original hex slots'!E33) -> 100 | F30: =HEX2DEC('original hex slots'!F33) -> 100 | G30: =HEX2DEC('original hex slots'!G33) -> 50 | H30: =HEX2DEC('original hex slots'!H33) -> 90 | I30: =HEX2DEC('original hex slots'!I33) -> 110 | J30: =HEX2DEC('original hex slots'!J33) -> 1 | K30: =HEX2DEC('original hex slots'!K33) -> 6 | L30: =HEX2DEC('original hex slots'!L33) -> 150 | M30: =HEX2DEC('original hex slots'!M33) -> 150 | N30: =HEX2DEC('original hex slots'!N33) -> 90 | O30: =HEX2DEC('original hex slots'!O33) -> 130 | P30: =HEX2DEC('original hex slots'!P33) -> 150 | Q30: =HEX2DEC('original hex slots'!Q33) -> 0
A31: 00000C70 | B31: =HEX2DEC('original hex slots'!B34) -> 1 | C31: =HEX2DEC('original hex slots'!C34) -> 69 | D31: =HEX2DEC('original hex slots'!D34) -> 2 | E31: =HEX2DEC('original hex slots'!E34) -> 100 | F31: =HEX2DEC('original hex slots'!F34) -> 15 | G31: =HEX2DEC('original hex slots'!G34) -> 220 | H31: =HEX2DEC('original hex slots'!H34) -> 28 | I31: =HEX2DEC('original hex slots'!I34) -> 138 | J31: =HEX2DEC('original hex slots'!J34) -> 180 | K31: =HEX2DEC('original hex slots'!K34) -> 4 | L31: =HEX2DEC('original hex slots'!L34) -> 0 | M31: =HEX2DEC('original hex slots'!M34) -> 0 | N31: =HEX2DEC('original hex slots'!N34) -> 0 | O31: =HEX2DEC('original hex slots'!O34) -> 0 | P31: =HEX2DEC('original hex slots'!P34) -> 1 | Q31: =HEX2DEC('original hex slots'!Q34) -> 0
A32: 00000C80 | B32: =HEX2DEC('original hex slots'!B35) -> 1 | C32: =HEX2DEC('original hex slots'!C35) -> 95 | D32: =HEX2DEC('original hex slots'!D35) -> 136 | E32: =HEX2DEC('original hex slots'!E35) -> 15 | F32: =HEX2DEC('original hex slots'!F35) -> 1 | G32: =HEX2DEC('original hex slots'!G35) -> 2 | H32: =HEX2DEC('original hex slots'!H35) -> 0 | I32: =HEX2DEC('original hex slots'!I35) -> 3 | J32: =HEX2DEC('original hex slots'!J35) -> 4 | K32: =HEX2DEC('original hex slots'!K35) -> 20 | L32: =HEX2DEC('original hex slots'!L35) -> 16 | M32: =HEX2DEC('original hex slots'!M35) -> 10 | N32: =HEX2DEC('original hex slots'!N35) -> 3 | O32: =HEX2DEC('original hex slots'!O35) -> 0 | P32: =HEX2DEC('original hex slots'!P35) -> 40 | Q32: =HEX2DEC('original hex slots'!Q35) -> 75
A33: 00000C90 | B33: =HEX2DEC('original hex slots'!B36) -> 110 | C33: =HEX2DEC('original hex slots'!C36) -> 150 | D33: =HEX2DEC('original hex slots'!D36) -> 190 | E33: =HEX2DEC('original hex slots'!E36) -> 0 | F33: =HEX2DEC('original hex slots'!F36) -> 0 | G33: =HEX2DEC('original hex slots'!G36) -> 0 | H33: =HEX2DEC('original hex slots'!H36) -> 0 | I33: =HEX2DEC('original hex slots'!I36) -> 0 | J33: =HEX2DEC('original hex slots'!J36) -> 0 | K33: =HEX2DEC('original hex slots'!K36) -> 0 | L33: =HEX2DEC('original hex slots'!L36) -> 0 | M33: =HEX2DEC('original hex slots'!M36) -> 0 | N33: =HEX2DEC('original hex slots'!N36) -> 0 | O33: =HEX2DEC('original hex slots'!O36) -> 0 | P33: =HEX2DEC('original hex slots'!P36) -> 0 | Q33: =HEX2DEC('original hex slots'!Q36) -> 0
A37: real torque decimal normal and sport | I37: Slot 2
B38: 00 | C38: 01 | D38: 02 | E38: 03 | F38: 04 | G38: 05 | H38: 06 | I38: 07 | J38: 08 | K38: 09 | L38: 0A | M38: 0A | N38: 0C | O38: 0D | P38: 0E | Q38: 0F
A39: 00000C00 | B39: =HEX2DEC('original hex slots'!B42) -> 0 | C39: =HEX2DEC('original hex slots'!C42) -> 0 | D39: =HEX2DEC('original hex slots'!D42) -> 0 | E39: =HEX2DEC('original hex slots'!E42) -> 0 | F39: =HEX2DEC('original hex slots'!F42) -> 0 | G39: =G24*2 -> 164 | H39: =H24*2 -> 190 | I39: 222 | J39: 254 | K39: 286 | L39: 308 | M39: 326 | N39: 334 | O39: 340 | P39: 340 | Q39: 340
A40: 00000C10 | B40: =B25*2 -> 336 | C40: =C25*2 -> 334 | D40: 332 | E40: 330 | F40: 326 | G40: =G25*2 -> 324 | H40: 322 | I40: 310 | J40: 298 | K40: 284 | L40: 268 | M40: 252 | N40: 200 | O40: 150 | P40: 100 | Q40: 100
A41: 00000C20 | B41: =B26*2 -> 100 | C41: 164 | D41: 190 | E41: 222 | F41: 254 | G41: =G26*2 -> 292 | H41: 316 | I41: 340 | J41: 360 | K41: 360 | L41: 360 | M41: 360 | N41: 360 | O41: 360 | P41: 360 | Q41: 360
A42: 00000C30 | B42: =B27*2 -> 360 | C42: 356 | D42: 354 | E42: 352 | F42: 336 | G42: 310 | H42: 280 | I42: 252 | J42: 200 | K42: 150 | L42: 100 | M42: 100 | N42: 100 | O42: =HEX2DEC('original hex slots'!O45) -> 0 | P42: =HEX2DEC('original hex slots'!P45) -> 0 | Q42: =HEX2DEC('original hex slots'!Q45) -> 0
